fUST/lending_fUST_20250701
["ID","MTS","AMOUNT","RATE_DAILY","PERIOD"]
[368781508,1751363467642,-474.81827952,0.0002329,4]
[368781509,1751363467652,-474.81827952,0.0002329,4]
[368781510,1751363467661,-474.81827952,0.0002329,4]
[368781511,1751363467670,-474.81827952,0.0002329,4]
[368781512,1751363467679,-474.81827952,0.0002329,4]
[368781513,1751363467690,-474.81827952,0.0002329,4]
[368781514,1751363467699,-474.81827952,0.0002329,4]
[368781515,1751363467710,-474.81,0.0002329,4]
[368781516,1751363467719,-1107.90931888,0.0002329,4]
[368781517,1751363467729,-1107.90931888,0.0002329,4]
[368781518,1751363467739,-1107.90931888,0.0002329,4]
[368781519,1751363467749,-1107.90931888,0.0002329,4]
[368781520,1751363467758,-1107.90931888,0.0002329,4]
[368781521,1751363467768,-1107.90931888,0.0002329,4]
[368781522,1751363467778,-1107.90931888,0.0002329,4]
[368781523,1751363467787,-1107.90931888,0.0002329,4]
[368781524,1751363467797,-1107.90931888,0.0002329,4]
[368781525,1751363467806,-1107.90931888,0.0002329,4]
[368781526,1751363467815,-1107.90931888,0.0002329,4]
[368781527,1751363467824,-1107.90931888,0.0002329,4]
[368781528,1751363467833,-1107.90931888,0.0002329,4]
[368781529,1751363467842,-1107.90931888,0.0002329,4]
[368781530,1751363467852,-1107.90931888,0.0002329,4]
[368781531,1751363467862,-1107.90931888,0.0002329,4]
[368781532,1751363467871,-1107.90931888,0.0002329,4]
[368781533,1751363467881,-1107.90931888,0.0002329,4]
[368781534,1751363467891,-1107.90931888,0.0002329,4]
[368781535,1751363467901,-1107.9,0.0002329,4]
[368781536,1751363467910,-500.0,0.000233,3]
[368781537,1751363467923,-77160.57,0.000233,7]
[368781538,1751363467932,-381.96330828,0.00023305,2]
[368781539,1751363467941,-168.0,0.00023313,2]
[368781540,1751363467951,-1000.0,0.00023325,2]
[368781541,1751363467960,-500.0,0.00023335,2]
[368781542,1751363467973,-391.0,0.00023337,2]
[368781543,1751363467982,-1600.0,0.00023339,2]
[368781544,1751363467992,-1000.0,0.00023351,2]
[368781545,1751363468002,-1443.62,0.00023364,4]
[368781546,1751363468012,-500.0,0.00023373,2]
[368781547,1751363468023,-1600.0,0.00023379,2]
[368781548,1751363468036,-190.0,0.0002338,2]
[368781549,1751363468046,-108873.51,0.000234,2]
[368781550,1751363468055,-10842.4,0.000234,7]
[368781551,1751363468065,-1600.0,0.00023415,2]
[368781552,1751363468075,-500.0,0.00023418,2]
[368781553,1751363468085,-1000.0,0.00023454,2]
[368781554,1751363468095,-1323.74,0.00023462,2]
[368781555,1751363468104,-1590.5,0.00023463,2]
[368781556,1751363468113,-460.0,0.00023463,2]
[368781557,1751363468123,-1192.21,0.00023463,2]
[368781558,1751363468132,-1552.26,0.00023463,2]
[368781559,1751363468142,-1767.48,0.00023463,2]
[368781560,1751363468151,-1866.06,0.00023463,2]
[368781561,1751363468160,-460.0,0.00023463,2]
[368781562,1751363468172,-1119.17,0.00023463,2]
[368781563,1751363468186,-585.13,0.00023463,2]
[368781564,1751363468195,-582.95,0.00023463,2]
[368781565,1751363468205,-1443.62,0.00023464,5]
[368781566,1751363468215,-2546.94,0.00023464,2]
[368781567,1751363468225,-727.96,0.00023464,2]
[368781568,1751363468235,-1600.0,0.00023468,2]
[368781569,1751363468246,-608.33617136,0.00023486,9]
[368781570,1751363468255,-2000.0,0.000235,2]
[368781571,1751363468266,-2000.0,0.000235,2]
[368781572,1751363468275,-194.4751945,0.00023506,2]
[368781573,1751363468285,-500.0,0.00023532,2]
[368781574,1751363468295,-500.0,0.00023534,2]
[368781575,1751363468306,-2968.01,0.00023555,2]
[368781576,1751363468315,-842.61,0.00023555,2]
[368781577,1751363468325,-598.6,0.00023561,2]
[368781578,1751363468334,-935.82,0.00023561,2]
[368781579,1751363468343,-284.74,0.00023561,2]
[368781580,1751363468353,-1539.79,0.00023561,2]
[368781581,1751363468362,-2209.86,0.00023561,2]
[368781582,1751363468371,-205.1,0.00023561,2]
[368781583,1751363468381,-205.1,0.00023561,2]
[368781584,1751363468391,-205.1,0.00023561,2]
[368781585,1751363468401,-205.1,0.00023561,2]
[368781586,1751363468410,-205.1,0.00023561,2]
[368781587,1751363468420,-205.1,0.00023561,2]
[368781588,1751363468430,-205.1,0.00023561,2]
[368781589,1751363468440,-205.1,0.00023561,2]
[368781590,1751363468449,-205.1,0.00023561,2]
[368781591,1751363468459,-205.1,0.00023561,2]
[368781592,1751363468468,-205.1,0.00023561,2]
[368781593,1751363468478,-205.1,0.00023561,2]
[368781594,1751363468487,-205.1,0.00023561,2]
[368781595,1751363468496,-205.1,0.00023561,2]
[368781596,1751363468506,-205.1,0.00023561,2]
[368781597,1751363468515,-205.1,0.00023561,2]
[368781598,1751363468526,-205.1,0.00023561,2]
[368781599,1751363468535,-205.1,0.00023561,2]
[368781600,1751363468545,-205.1,0.00023561,2]
[368781601,1751363468555,-205.1,0.00023561,2]
[368781602,1751363468565,-205.1,0.00023561,2]
[368781603,1751363468574,-205.1,0.00023561,2]
[368781604,1751363468584,-1177.83,0.00023561,2]
[368781605,1751363468594,-514.45,0.00023563,2]
[368781606,1751363468603,-1443.62,0.00023564,7]
[368781607,1751363468614,-450.0,0.00023568,2]
[368781608,1751363468623,-276.81207988,0.00023568,2]
[368781609,1751363468633,-1600.0,0.00023582,2]
[368781610,1751363468643,-1000.0,0.00023598,2]
[368781611,1751363468864,-432.31293982,0.00023638,2]
[368781612,1751363468874,-1000.0,0.00023641,2]
[368781613,1751363468884,-550.0,0.00023653,2]
[368781614,1751363468894,-1443.62,0.00023664,7]
[368781615,1751363468907,-2681.19844231,0.00023667,2]
[368781616,1751363468918,-1000.0,0.00023691,2]
[368781617,1751363468929,-231.28369723,0.00023693,2]
[368781618,1751363468939,-177.5384831,0.00023698,2]
[368781619,1751363468947,-500.0,0.00023698,2]
[368781620,1751363468957,-161.4370747,0.00023703,2]
[368781621,1751363468969,-608.33617136,0.00023728,9]
[368781622,1751363468990,-1323.74,0.00023736,2]
[368781623,1751363469105,-1590.5,0.00023737,2]
[368781624,1751363469115,-438.65292702,0.00023737,2]
[368781625,1751363469126,-1192.21,0.00023737,2]
[368781626,1751363469135,-1552.26,0.00023737,2]
[368781627,1751363469145,-1767.48,0.00023737,2]
[368781628,1751363469155,-1866.06,0.00023737,2]
[368781629,1751363469164,-233.13367604,0.00023737,2]
[368781630,1751363469173,-1119.17,0.00023737,2]
[368781631,1751363469183,-585.13,0.00023737,2]
[368781632,1751363469192,-582.95,0.00023737,2]
[368781633,1751363469204,-2546.94,0.00023738,2]
[368781634,1751363469213,-727.96,0.00023738,2]
[368781635,1751363469223,-1600.0,0.00023749,2]
[368781636,1751363469233,-2315.59318996,0.00023756,2]
[368781637,1751363469242,-1443.62,0.00023764,4]
[368781638,1751363469252,-1600.0,0.00023798,2]
[368781639,1751363469261,-1000.0,0.00023805,2]
[368781640,1751363469271,-1600.0,0.00023813,2]
[368781641,1751363469280,-718.43788901,0.0002382,2]
[368781642,1751363469290,-205.1,0.00023828,2]
[368781643,1751363469300,-2968.01,0.00023829,2]
[368781644,1751363469309,-842.61,0.00023829,2]
[368781645,1751363469319,-1600.0,0.00023832,2]
[368781646,1751363469330,-598.6,0.00023835,2]
[368781647,1751363469339,-935.82,0.00023835,2]
[368781648,1751363469349,-1539.79,0.00023835,2]
[368781649,1751363469358,-2209.86,0.00023835,2]
[368781650,1751363469369,-1177.83,0.00023835,2]
[368781651,1751363469378,-514.45,0.00023837,2]
[368781652,1751363469388,-1000.0,0.00023837,2]
[368781653,1751363469397,-1000.0,0.00023849,2]
[368781654,1751363469407,-1443.62,0.00023864,2]
[368781655,1751363469417,-459.75781796,0.0002388,12]
[368781656,1751363469426,-1856.58,0.000239,7]
[368781657,1751363469435,-1600.0,0.00023908,2]
[368781658,1751363469445,-508.10330465,0.0002394,2]
[368781659,1751363469454,-500.0,0.00023949,2]
[368781660,1751363469464,-1443.62,0.00023964,4]
[368781661,1751363469474,-608.33617136,0.00023969,10]
[368781662,1751363469484,-500.0,0.00023973,2]
[368781663,1751363469494,-966.0,0.00023985,2]
[368781664,1751363469503,-646.0,0.00023985,2]
[368781665,1751363469512,-2151.0,0.00023985,2]
[368781666,1751363469522,-1689.00139332,0.00024,2]
[368781667,1751363469532,-10123.83693184,0.00024,2]
[368781668,1751363469541,-160.0,0.00024,7]
[368781669,1751363469551,-132879.46918689,0.00024,2]
[368781670,1751363469560,-160.0,0.00024,7]
[368781671,1751363469570,-160.0,0.00024,10]
[368781672,1751363469579,-160.0,0.00024,10]
[368781673,1751363469589,-30889.1888103,0.00024,2]
[368781674,1751363469598,-500.0,0.00024,4]
[368781675,1751363469607,-4859.44495155,0.00024,14]
[368781676,1751363469617,-10000.0,0.00024,7]
[368781677,1751363469626,-426.23877631,0.00024,60]
[368781678,1751363469635,-3804.95126,0.00024,30]
[368781679,1751363469645,-160.0,0.00024,7]
[368781680,1751363469655,-160.0,0.00024,7]
[368781681,1751363469664,-1557.6,0.00024,2]
[368781682,1751363469674,-215.01728679,0.00024,7]
[368781683,1751363469684,-230.32585361,0.00024,7]
[368781684,1751363469695,-837.20943635,0.00024,7]
[368781685,1751363469706,-160.0,0.00024,7]
[368781686,1751363469715,-160.0,0.00024,7]
[368781687,1751363469724,-160.0,0.00024,7]
[368781688,1751363469733,-1323.78561851,0.0002401,2]
[368781689,1751363469743,-1590.73840352,0.00024011,2]
[368781690,1751363469753,-1192.41,0.00024011,2]
[368781691,1751363469762,-1552.27986188,0.00024011,2]
[368781692,1751363469772,-1767.69699278,0.00024011,2]
[368781693,1751363469781,-1866.17613256,0.00024011,2]
[368781694,1751363469791,-1119.2173909,0.00024011,2]
[368781695,1751363469802,-585.25,0.00024011,2]
[368781696,1751363469811,-583.17582457,0.00024011,2]
[368781697,1751363469822,-2547.02560855,0.00024012,2]
[368781698,1751363469831,-728.1950787,0.00024012,2]
[368781699,1751363469839,-1443.62,0.00024064,7]
[368781700,1751363469849,-500.0,0.00024094,2]
[368781701,1751363469859,-2000.0,0.000241,2]
[368781702,1751363469869,-205.30840444,0.00024102,2]
[368781703,1751363469878,-2968.16300085,0.00024103,2]
[368781704,1751363469890,-842.74755876,0.00024103,2]
[368781705,1751363469901,-598.83578704,0.00024109,2]
[368781706,1751363469914,-936.0435871,0.00024109,2]
[368781707,1751363469924,-1539.9838255,0.00024109,2]
[368781708,1751363469934,-2210.03304749,0.00024109,2]
[368781709,1751363469943,-1178.02135108,0.00024109,2]
[368781710,1751363469953,-514.53002004,0.00024111,2]
[368781711,1751363469963,-600.0,0.00024116,2]
[368781712,1751363469972,-1600.0,0.0002413,2]
[368781713,1751363469982,-500.0,0.00024158,2]
[368781714,1751363469993,-1443.62,0.00024164,3]
[368781715,1751363470004,-416.0,0.00024164,7]
[368781716,1751363470014,-170.0,0.00024164,7]
[368781717,1751363470023,-401.0,0.00024164,7]
[368781718,1751363470032,-1600.0,0.00024166,2]
[368781719,1751363470041,-348.0,0.000242,2]
[368781720,1751363470051,-500.0,0.000242,2]
[368781721,1751363470060,-464.15321446,0.000242,2]
[368781722,1751363470070,-650.0,0.00024201,2]
[368781723,1751363470081,-608.33617136,0.0002421,10]
[368781724,1751363470092,-1443.62,0.00024264,3]
[368781725,1751363470101,-1600.0,0.00024265,2]
[368781726,1751363470113,-1600.0,0.00024274,2]
[368781727,1751363470122,-1600.0,0.00024287,2]
[368781728,1751363470132,-500.0,0.000243,3]
[368781729,1751363470146,-108873.51,0.000243,2]
[368781730,1751363470155,-77160.57,0.000243,7]
[368781731,1751363470164,-10842.4,0.000243,7]
[368781732,1751363470174,-500.0,0.00024319,2]
[368781733,1751363470184,-167.2561094,0.00024331,2]
[368781734,1751363470193,-1600.0,0.00024337,2]
[368781735,1751363470203,-1000.0,0.00024358,2]
[368781736,1751363470219,-1443.62,0.00024364,7]
[368781737,1751363470229,-1600.0,0.00024368,2]
[368781738,1751363470239,-500.0,0.00024369,2]
[368781739,1751363470249,-608.33617136,0.00024452,11]
[368781740,1751363470259,-1443.62,0.00024464,3]
[368781741,1751363470269,-1575.58317627,0.00024499,2]
[368781742,1751363470279,-200.0,0.000245,2]
[368781743,1751363470288,-200.0,0.000245,14]
[368781744,1751363470297,-2000.0,0.000245,2]
[368781745,1751363470307,-2000.0,0.000245,2]
[368781746,1751363470316,-266.54,0.000245,30]
[368781747,1751363470325,-1000.0,0.00024521,2]
[368781748,1751363470334,-1000.0,0.00024521,2]
[368781749,1751363470343,-177.5971231,0.00024525,2]
[368781750,1751363470354,-575.5050994,0.00024525,2]
[368781751,1751363470363,-177.5971231,0.00024525,2]
[368781752,1751363470373,-575.5050994,0.00024525,2]
[368781753,1751363470382,-177.5971231,0.00024525,2]
[368781754,1751363470391,-575.5050994,0.00024525,2]
[368781755,1751363470400,-177.5971231,0.00024525,2]
[368781756,1751363470409,-575.5050994,0.00024525,2]
[368781757,1751363470419,-177.5971231,0.00024525,2]
[368781758,1751363470428,-569.8722216,0.00024525,2]
[368781759,1751363470436,-177.5971231,0.00024525,2]
[368781760,1751363470445,-177.5971231,0.00024525,2]
[368781761,1751363470454,-177.5971231,0.00024525,2]
[368781762,1751363470463,-176.7264936,0.00024525,2]
[368781763,1751363470473,-500.0,0.00024541,2]
[368781764,1751363470482,-500.0,0.00024546,2]
[368781765,1751363470492,-1443.62,0.00024564,7]
[368781766,1751363470501,-1000.0,0.00024566,2]
[368781767,1751363470510,-4040.44535575,0.0002461,2]
[368781768,1751363470521,-500.0,0.00024636,2]
[368781769,1751363470530,-33523.26784093,0.0002465,7]
[368781770,1751363470540,-438636.93094164,0.0002465,2]
[368781771,1751363470550,-500.81009143,0.0002465,2]
[368781772,1751363470560,-200.09620712,0.0002465,2]
[368781773,1751363470570,-382.59,0.0002465,30]
[368781774,1751363470580,-200.0,0.00024657,2]
[368781775,1751363470589,-209.9143543,0.00024657,2]
[368781776,1751363470599,-1000.0,0.00024658,3]
[368781777,1751363470608,-666.0,0.00024658,2]
[368781778,1751363470618,-380.0,0.00024658,2]
[368781779,1751363470627,-568.3498,0.00024658,7]
[368781780,1751363470636,-200.0,0.00024658,15]
[368781781,1751363470646,-200.0,0.00024658,2]
[368781782,1751363470655,-500.0,0.00024658,2]
[368781783,1751363470664,-500.0,0.00024661,2]
[368781784,1751363470675,-1600.0,0.00024663,2]
[368781785,1751363470684,-1443.62,0.00024664,7]
[368781786,1751363470694,-750.0,0.00024664,2]
[368781787,1751363470703,-1600.0,0.00024676,2]
[368781788,1751363470713,-500.0,0.00024677,2]
[368781789,1751363470723,-150917.33444863,0.0002468,2]
[368781790,1751363470731,-99082.66555137,0.0002468,2]
[368781791,1751363470741,-500.0,0.00024685,2]
[368781792,1751363470751,-500.0,0.00024689,2]
[368781793,1751363470760,-608.33617136,0.00024693,11]
[368781794,1751363470769,-499.3,0.00024705,2]
[368781795,1751363470778,-500.0,0.00024713,2]
[368781796,1751363470788,-1600.0,0.0002472,2]
[368781797,1751363470797,-1600.0,0.00024728,2]
[368781798,1751363470805,-438.93420418,0.0002473,7]
[368781799,1751363470814,-500.0,0.0002474,2]
[368781800,1751363470824,-500.0,0.00024748,2]
[368781801,1751363470833,-750.0,0.00024749,2]
[368781802,1751363470843,-1443.62,0.00024764,2]
[368781803,1751363470852,-500.0,0.00024768,2]
[368781804,1751363470862,-12904.79450284,0.00024774,2]
[368781805,1751363470872,-1000.0,0.00024792,2]
[368781806,1751363470882,-500.0,0.00024795,2]
[368781807,1751363470891,-500.0,0.00024801,2]
[368781808,1751363470901,-598.18754606,0.00024803,2]
[368781809,1751363470912,-1000.0,0.00024806,2]
[368781810,1751363470923,-500.0,0.00024822,2]
[368781811,1751363470934,-500.0,0.0002485,2]
[368781812,1751363470943,-1600.0,0.0002486,2]
[368781813,1751363470952,-1443.62,0.00024864,6]
[368781814,1751363470963,-58.66898813,0.00024877,2]
[368781815,1751363471089,-441.33101187,0.00024877,2]
[368781816,1751363471098,-501.64168087,0.00024896,2]
[368781817,1751363471110,-498.35831913,0.00024896,2]
[368781818,1751363471119,-1658.26786078,0.000249,7]
[368781819,1751363471607,-272.62640385,0.00017709,2]
[368781820,1751363471667,500.0,0.00025201,120]
[368781821,1751363471991,-0.31306679,0.00017709,2]
[368781822,1751363472008,-187.06052936,0.00017709,2]
[368781823,1751363472018,-151.0,0.00018085,2]
[368781824,1751363472028,-151.0,0.00018459,2]
[368781825,1751363472039,-151.0,0.00018805,2]
[368781826,1751363472049,-222.0,0.00019343,2]
[368781827,1751363472059,-198.31213922,0.000249,7]
[368781828,1751363472068,-342577.36206414,0.000249,2]
[368781831,1751363521061,-236.3345722,0.00017209,2]
[368781832,1751363523737,-300.0,0.00017209,2]
[368781833,1751363526095,-189.9104735,0.00017209,2]
[368781835,1751363639295,-227.01379681,0.00017177,2]
[368781836,1751363642056,-15.66716819,0.00017177,2]
[368781837,1751363642078,-167.78264992,0.00017178,2]
[368781838,1751363660866,12098.9622622,0.00016709,2]
[368781839,1751363766849,228.5466811,0.00016684,2]
[368781846,1751363903269,166.0,0.00016708,2]
[368781853,1751363982691,500.0,0.00025136,120]
[368781854,1751363989543,500.0,0.00025136,120]
[368781855,1751363995410,500.0,0.00025136,120]
[368781856,1751363998541,609.357157,0.00013699,2]
[368781857,1751364016490,9336.83551546,0.00016668,2]
[368781858,1751364016514,663.16448454,0.00016668,2]
[368781859,1751364021612,500.0,0.00025136,120]
[368781860,1751364031715,500.0,0.00025136,120]
[368781863,1751364042755,5000.0,0.000171,2]
[368781864,1751364044298,500.0,0.00025136,120]
[368781868,1751364173935,583.4278489,0.00016657,2]
[368781871,1751364212194,23753.40766656,0.00016657,2]
[368781872,1751364212218,1146.59233344,0.00016657,2]
[368781874,1751364215486,1256.353288,0.00016647,2]
[368781875,1751364245116,1238.52062518,0.000171,2]
[368781876,1751364253402,5000.0,0.000171,2]
[368781877,1751364266848,500.0,0.00025136,120]
[368781878,1751364294898,500.0,0.00025138,120]
[368781880,1751364334138,-5000.0,0.00017331,2]
[368781881,1751364334161,-191.88799906,0.00017506,2]
[368781882,1751364334185,-1200.0,0.00017605,2]
[368781883,1751364334209,-300.0,0.00017606,2]
[368781884,1751364334231,-300.0,0.00017606,2]
[368781885,1751364334254,-300.0,0.00017606,2]
[368781886,1751364334277,-300.0,0.00017606,2]
[368781887,1751364334302,-560.0,0.00017607,2]
[368781888,1751364334326,-1848.11200094,0.0001761,2]
[368781889,1751364336128,-1633.00732119,0.0001761,2]
[368781890,1751364336152,-500.0,0.00017705,2]
[368781891,1751364336175,-500.0,0.00017705,2]
[368781892,1751364336197,-500.0,0.00017705,2]
[368781893,1751364336219,-500.0,0.00017705,2]
[368781894,1751364336241,-177.685,0.00017705,2]
[368781895,1751364336261,-460.0,0.00017705,2]
[368781896,1751364336282,-407.08819007,0.00017705,2]
[368781897,1751364377516,152.0,0.00025138,60]
[368781899,1751364530015,5000.0,0.0001833,6]
[368781900,1751364545638,5000.0,0.0001833,6]
[368781901,1751364547113,-1522.3985984,0.00017606,2]
[368781902,1751364573096,-1803.95089737,0.0001743,2]
[368781903,1751364583959,460.0,0.00025145,60]
[368781904,1751364612857,1000.0,0.00025145,60]
[368781940,1751364631760,-3196.04910263,0.0001743,2]
[368781941,1751364631770,-300.0,0.00017704,2]
[368781942,1751364631779,-300.0,0.00017704,2]
[368781943,1751364631788,-1200.0,0.00017704,2]
[368781944,1751364631798,-52.91180993,0.00017705,2]
[368781945,1751364631807,-460.0,0.00017705,2]
[368781946,1751364631816,-460.0,0.00017705,2]
[368781947,1751364631826,-460.0,0.00017705,2]
[368781948,1751364631835,-460.0,0.00017705,2]
[368781949,1751364631845,-460.0,0.00017705,2]
[368781950,1751364631855,-473.1919788,0.00017705,2]
[368781951,1751364631865,-460.0,0.00017705,2]
[368781952,1751364631874,-605.2,0.00017705,2]
[368781953,1751364631884,-460.0,0.00017705,2]
[368781954,1751364631893,-460.0,0.00017705,2]
[368781955,1751364631902,-924.13,0.00017705,2]
[368781956,1751364631911,-460.0,0.00017705,2]
[368781957,1751364631920,-460.0,0.00017705,2]
[368781958,1751364631929,-460.0,0.00017705,2]
[368781959,1751364631939,-460.0,0.00017705,2]
[368781960,1751364631949,-460.0,0.00017705,2]
[368781961,1751364631959,-460.0,0.00017705,2]
[368781962,1751364631968,-534.07,0.00017705,2]
[368781963,1751364631978,-460.0,0.00017705,2]
[368781964,1751364631987,-460.0,0.00017705,2]
[368781965,1751364631996,-460.0,0.00017705,2]
[368781966,1751364632005,-460.0,0.00017705,2]
[368781967,1751364632015,-460.0,0.00017705,2]
[368781968,1751364632024,-460.0,0.00017705,2]
[368781969,1751364632034,-460.0,0.00017705,2]
[368781970,1751364632043,-460.0,0.00017705,2]
[368781971,1751364632052,-460.0,0.00017705,2]
[368781972,1751364632061,-460.0,0.00017705,2]
[368781973,1751364632070,-460.0,0.00017705,2]
[368781974,1751364632079,-460.0,0.00017705,2]
[368781975,1751364632089,-460.0,0.00017705,2]
[368781976,1751364632098,-460.0,0.00017705,2]
[368781977,1751364632107,-460.70806726,0.00017705,2]
[368781978,1751364632116,-476.77056905,0.00017705,2]
[368781979,1751364632130,-460.0,0.00017705,2]
[368781980,1751364632140,-460.0,0.00017705,2]
[368781981,1751364632149,-460.0,0.00017705,2]
[368781982,1751364632159,-460.0,0.00017705,2]
[368781983,1751364632168,-974.68,0.00017705,2]
[368781984,1751364632177,-460.0,0.00017705,2]
[368781985,1751364632187,-460.0,0.00017705,2]
[368781986,1751364632196,-460.0,0.00017705,2]
[368781987,1751364632206,-460.0,0.00017705,2]
[368781988,1751364632215,-1000.0,0.00017706,2]
[368781989,1751364632224,-460.0,0.00017706,2]
[368781990,1751364632233,-460.0,0.00017706,2]
[368781991,1751364632242,-460.0,0.00017706,2]
[368781992,1751364632251,-460.0,0.00017706,2]
[368781993,1751364632260,-460.0,0.00017706,2]
[368781994,1751364632269,-460.0,0.00017706,2]
[368781995,1751364632279,-460.0,0.00017706,2]
[368781996,1751364632288,-460.0,0.00017706,2]
[368781997,1751364632298,-460.0,0.00017706,2]
[368781998,1751364632307,-186.4023518,0.00017706,2]
[368781999,1751364632316,-236.3345722,0.00017706,2]
[368782000,1751364632326,-460.0,0.00017706,2]
[368782001,1751364632335,-455.51826025,0.00017706,2]
[368782002,1751364632344,-460.0,0.00017706,2]
[368782003,1751364632353,-460.0,0.00017706,2]
[368782004,1751364632362,-497.48696393,0.00017706,2]
[368782005,1751364632372,-460.0,0.00017706,2]
[368782006,1751364632382,-460.0,0.00017706,2]
[368782007,1751364632391,-465.93686333,0.00017706,2]
[368782008,1751364632401,-460.0,0.00017706,2]
[368782009,1751364632410,-460.0,0.00017706,2]
[368782010,1751364632419,-437.48988262,0.00017706,2]
[368782011,1751364632429,-460.0,0.00017706,2]
[368782012,1751364632438,-460.0,0.00017706,2]
[368782013,1751364632451,-460.0,0.00017706,2]
[368782014,1751364632461,-460.0,0.00017706,2]
[368782015,1751364632470,-460.0,0.00017706,2]
[368782016,1751364632479,-460.0,0.00017706,2]
[368782017,1751364632490,-460.0,0.00017706,2]
[368782018,1751364632499,-460.0,0.00017706,2]
[368782019,1751364632509,-460.0,0.00017706,2]
[368782020,1751364632518,-460.0,0.00017706,2]
[368782021,1751364632528,-386.88378163,0.00017706,2]
[368782022,1751364632538,-460.0,0.00017706,2]
[368782023,1751364632547,-460.0,0.00017706,2]
[368782024,1751364632557,-460.0,0.00017706,2]
[368782025,1751364632567,-460.0,0.00017706,2]
[368782026,1751364632577,-460.0,0.00017706,2]
[368782027,1751364632586,-500.0,0.00017706,2]
[368782028,1751364632596,-460.0,0.00017706,2]
[368782030,1751364632605,-460.0,0.00017706,2]
[368782032,1751364632616,-460.0,0.00017706,2]
[368782034,1751364632626,-460.0,0.00017706,2]
[368782036,1751364632635,-460.0,0.00017706,2]
[368782038,1751364632644,-460.0,0.00017706,2]
[368782040,1751364632654,-407.00332595,0.00017706,2]
[368782042,1751364632663,-460.0,0.00017706,2]
[368782044,1751364632673,-460.0,0.00017706,2]
[368782046,1751364632682,-460.0,0.00017706,2]
[368782048,1751364632692,-460.0,0.00017706,2]
[368782050,1751364632701,-460.0,0.00017706,2]
[368782052,1751364632710,-460.0,0.00017706,2]
[368782054,1751364632719,-460.0,0.00017706,2]
[368782056,1751364632729,-460.0,0.00017706,2]
[368782058,1751364632739,-460.0,0.00017706,2]
[368782060,1751364632750,-460.0,0.00017706,2]
[368782062,1751364632759,-460.0,0.00017706,2]
[368782064,1751364632772,-460.0,0.00017706,2]
[368782066,1751364632782,-460.0,0.00017706,2]
[368782068,1751364632792,-460.0,0.00017706,2]
[368782070,1751364632801,-460.0,0.00017706,2]
[368782072,1751364632811,-460.0,0.00017706,2]
[368782074,1751364632820,-537.8,0.00017706,2]
[368782076,1751364632829,-460.0,0.00017706,2]
[368782078,1751364632839,-460.0,0.00017706,2]
[368782080,1751364632848,-460.0,0.00017706,2]
[368782082,1751364632858,-460.0,0.00017706,2]
[368782084,1751364632868,-460.0,0.00017706,2]
[368782086,1751364632878,-154.84364175,0.00017706,2]
[368782088,1751364632887,-460.0,0.00017706,2]
[368782090,1751364632898,-460.0,0.00017706,2]
[368782092,1751364632907,-460.0,0.00017706,2]
[368782094,1751364632917,-460.0,0.00017706,2]
[368782096,1751364632926,-460.0,0.00017706,2]
[368782098,1751364632936,-460.0,0.00017706,2]
[368782100,1751364632945,-460.0,0.00017706,2]
[368782102,1751364632955,-460.0,0.00017706,2]
[368782104,1751364632965,-460.0,0.00017706,2]
[368782106,1751364632975,-460.0,0.00017706,2]